bitfinex-derivatives/quotes_SOLF0:USTF0_20250301
["timestamp","ask_amount","ask_price","bid_price","bid_amount"]
[1740824240399,5.7001,142.56,142.5,0.04451959]
[1740824240694,6.316,142.54,142.5,0.04451959]
[1740824241093,5.7001,142.56,142.5,0.04451959]
[1740824241400,6.3162,142.53,142.5,0.04451959]
[1740824243391,6.3171,142.51,142.5,0.04451959]
[1740824245890,6.3171,142.51,142.5,1.959e-05]
[1740824263701,0.0463318,142.52,142.5,6.31751959]
[1740824263895,0.0463318,142.52,142.5,1.959e-05]
[1740824264402,0.0463318,142.52,142.51,6.3171]
[1740824265298,3.7324,142.61,142.51,3.5]
[1740824265502,76.31420413,142.63,142.49,5.6665]
[1740824265903,6.3123,142.62,142.49,5.6665]
[1740824266413,76.31420413,142.63,142.49,5.6665]
[1740824266414,6.3129,142.61,142.55,6.315]
[1740824266602,6.3129,142.61,142.56,10.0]
[1740824266804,76.31420413,142.63,142.57,0.04657875]
[1740824267300,6.3131,142.6,142.57,0.04657875]
[1740824269213,6.314,142.58,142.57,0.04657875]
[1740824269405,6.314,142.58,142.57,7.875e-05]
[1740824271317,11.9306,142.58,142.57,7.875e-05]
[1740824280921,15.4306,142.58,142.57,7.875e-05]
[1740824282228,16.680428,142.58,142.57,7.875e-05]
[1740824284125,16.68025323,142.58,142.57,7.875e-05]
[1740824287827,16.68155597,142.58,142.57,7.875e-05]
[1740824288631,13.18155597,142.58,142.57,7.875e-05]
[1740824288833,11.9306,142.58,142.57,7.875e-05]
[1740824289033,6.314,142.58,142.57,7.875e-05]
[1740824289420,6.36542075,142.59,142.57,7.875e-05]
[1740824289622,0.05182075,142.59,142.57,7.875e-05]
[1740824290534,6.314,142.58,142.57,7.875e-05]
[1740824305477,16.314,142.58,142.57,7.875e-05]
[1740824305954,21.8369,142.58,142.57,7.875e-05]
[1740824307058,23.08665839,142.58,142.57,7.875e-05]
[1740824308364,21.8369,142.58,142.57,7.875e-05]
[1740824314466,26.58712103,142.58,142.57,7.875e-05]
[1740824315864,251.16660677,142.58,142.57,7.875e-05]
[1740824316569,265.62013393,142.58,142.57,7.875e-05]
[1740824316761,266.86978545,142.58,142.57,7.875e-05]
[1740824319575,265.62013393,142.58,142.57,7.875e-05]
[1740824319776,266.870125,142.58,142.57,7.875e-05]
[1740824321174,263.370125,142.58,142.57,7.875e-05]
[1740824321977,262.12013393,142.58,142.57,7.875e-05]
[1740824322166,263.37008518,142.58,142.57,7.875e-05]
[1740824323077,266.87008518,142.58,142.57,7.875e-05]
[1740824324678,287.97008518,142.58,142.57,7.875e-05]
[1740824324868,6.3205,142.44,142.39,202.0]
[1740824325070,6.3205,142.44,142.39,10.0]
[1740824325381,6.3205,142.44,142.39,16.3223]
[1740824325877,0.04841035,142.43,142.4,0.0457656]
[1740824326278,6.36911035,142.43,142.4,0.0457656]
[1740824326875,6.3213,142.42,142.4,0.0457656]
[1740824327175,0.04841035,142.43,142.4,0.0457656]
[1740824328581,6.3215,142.41,142.4,0.0457656]
[1740824329975,0.04841035,142.43,142.4,0.0457656]
[1740824329976,6.3214,142.42,142.4,0.0457656]
[1740824332174,6.3215,142.41,142.4,0.0457656]
[1740824337689,0.04841035,142.43,142.4,0.0457656]
[1740824337891,6.3213,142.42,142.4,0.0457656]
[1740824338384,6.3215,142.41,142.4,0.0457656]
[1740824341386,6.36931035,142.43,142.4,0.0457656]
[1740824341692,0.04841035,142.43,142.4,0.0457656]
[1740824341895,6.36931035,142.43,142.4,0.0457656]
[1740824342198,0.04841035,142.43,142.4,0.0457656]
[1740824342385,0.04841035,142.43,142.4,5.6559656]
[1740824342586,6.3211,142.42,142.4,5.6559656]
[1740824343091,6.3215,142.41,142.4,5.6559656]
[1740824349193,6.3215,142.41,142.4,0.0457656]
[1740824349689,6.3215,142.41,142.4,6.56e-05]
[1740824350683,9.8415,142.41,142.4,6.56e-05]
[1740824351085,11.7523,142.41,142.4,6.56e-05]
[1740824351789,13.00029249,142.41,142.4,6.56e-05]
[1740824353894,9.48029249,142.41,142.4,6.56e-05]
[1740824354102,8.2323,142.41,142.4,6.56e-05]
[1740824354498,9.48073676,142.41,142.4,6.56e-05]
[1740824355294,13.00073676,142.41,142.4,6.56e-05]
[1740824356694,13.00110981,142.41,142.4,6.56e-05]
[1740824360098,11.7523,142.41,142.4,6.56e-05]
[1740824360301,13.00195614,142.41,142.4,6.56e-05]
[1740824360799,11.7523,142.41,142.4,6.56e-05]
[1740824361002,13.00196144,142.41,142.4,6.56e-05]
[1740824361804,9.48196144,142.41,142.4,6.56e-05]
[1740824363401,34.10196144,142.41,142.4,6.56e-05]
[1740824363901,27.78012015,142.41,142.25,5.6247]
[1740824364202,21.1,142.37,142.2,9.70369748]
[1740824364403,240.08082015,142.36,142.21,5.7844]
[1740824364605,6.3288,142.25,142.21,5.7844]
[1740824365093,0.05248591,142.24,142.21,5.7844]
[1740824365293,0.05248591,142.24,142.22,0.04689366]
[1740824366705,0.05248591,142.24,142.22,3.56689366]
[1740824366904,10.04,142.3,142.22,3.56689366]
[1740824367101,10.04,142.3,142.22,0.04689366]
[1740824367300,10.04,142.3,142.22,10.08689366]
[1740824367509,10.04,142.3,142.22,0.04689366]
[1740824368005,0.04884976,142.27,142.22,0.04689366]
[1740824368602,6.3295,142.23,142.22,0.04689366]
[1740824372004,6.37539349,142.24,142.22,0.04689366]
[1740824378001,0.04619349,142.24,142.22,0.04689366]
[1740824378700,6.37529349,142.24,142.22,0.04689366]
[1740824379201,0.04619349,142.24,142.22,0.04689366]
[1740824379400,6.3295,142.23,142.22,0.04689366]
[1740824381113,6.37539349,142.24,142.22,0.04689366]
[1740824381501,0.04619349,142.24,142.22,0.04689366]
[1740824382206,6.3262,142.31,142.22,3.56689366]
[1740824382402,6.3262,142.31,142.22,0.04689366]
[1740824382606,1.8115,142.34,142.28,6.3272]
[1740824382803,6.326,142.31,142.28,6.3272]
[1740824382999,1.8115,142.34,142.25,10.06]
[1740824383205,1.8115,142.34,142.28,6.37207518]
[1740824383414,6.3257,142.32,142.28,0.04477518]
[1740824383805,1.8115,142.34,142.28,0.04477518]
[1740824385401,6.3268,142.29,142.28,0.04477518]
[1740824386211,6.3268,142.29,142.28,7.518e-05]
[1740824392511,8.2043,142.29,142.28,7.518e-05]
[1740824392712,10.1788,142.29,142.28,7.518e-05]
[1740824396121,8.2043,142.29,142.28,7.518e-05]
[1740824399018,6.3268,142.29,142.28,7.518e-05]
[1740824418233,3.52,142.29,140.26,104.87530728]
[1740824418428,21.1,142.27,142.09,200.11556488]
[1740824418627,228.14231366,142.26,142.09,200.11556488]
[1740824418827,1.24731366,142.25,142.09,193.78006488]
[1740824419036,20.79354479,142.25,142.12,9.70369748]
[1740824419229,1.24731366,142.24,142.12,9.70369748]
[1740824419538,6.334,142.13,142.12,9.70369748]
[1740824420134,6.3344,142.12,142.11,33.98855696]
[1740824420336,10.24,142.13,142.09,109.17087849]
[1740824420636,10.3,142.13,142.09,109.17087849]
[1740824421233,10.3,142.13,142.01,872.11162709]
[1740824421234,124.0,142.12,141.95,73.88556013]
[1740824421536,10.3,142.13,142.02,7.505e-05]
[1740824421537,21.1,142.09,142.02,7.505e-05]
[1740824421738,6.3427,141.94,141.88,484.45016221]
[1740824422036,11.04,141.99,141.88,484.45016221]
[1740824422338,6.3407,141.98,141.87,45.09039393]
[1740824422535,11.04,141.99,141.94,293.12490733]
[1740824422936,6.3412,141.97,141.95,0.05216308]
[1740824423134,6.3412,141.97,141.95,6.308e-05]
[1740824423341,124.0,141.96,141.94,242.40447041]
[1740824423645,130.342,141.95,141.94,242.40447041]
[1740824423828,3.5673773,141.98,141.94,118.40447041]
[1740824424028,149.0,141.97,141.94,89.23907041]
[1740824424235,225.22,141.96,141.87,20.34979393]
[1740824424531,1.40894681,141.95,141.87,2.73639393]
[1740824424730,6.3443,141.9,141.71,6.3526]
[1740824424935,11.3,141.89,141.7,13.133]
[1740824425143,11.3,141.88,141.71,11.3]
[1740824425436,334.53961116,141.95,141.71,11.3]
[1740824425642,334.53961116,141.95,141.72,22.51123341]
[1740824425845,334.53961116,141.95,141.86,6.3456]
[1740824426040,334.53961116,141.95,141.82,0.05204067]
[1740824426041,311.46668161,141.95,141.87,242.6384]
[1740824426246,11.54,142.07,141.87,242.6384]
[1740824426543,11.54,142.07,141.9,6.3441]
[1740824426741,11.54,142.07,141.87,242.6384]
[1740824426946,5.804928,142.06,141.87,242.6384]
[1740824427246,0.04665651,141.98,141.96,0.05364225]
[1740824427433,5.804928,142.06,141.92,11.54]
[1740824427635,196.63741181,142.06,141.92,11.54]
[1740824428043,0.05211953,142.0,141.98,0.05247509]
[1740824429150,196.63741181,142.06,141.98,0.05247509]
[1740824429445,80.02110831,141.99,141.97,190.67504982]
[1740824429745,74.09330831,141.99,141.97,190.67504982]
[1740824429943,74.09330831,142.05,141.97,190.67504982]
[1740824430141,74.09330831,142.05,141.97,92.36814316]
[1740824430346,21.1,142.04,141.87,3.9054]
[1740824430537,0.04955115,142.02,142.0,5.623e-05]
[1740824430741,0.04955115,142.02,141.87,1.9741]
[1740824430742,11.62,142.01,141.87,1.9741]
[1740824430937,5.78986725,142.0,141.87,1.9741]
[1740824431137,5.78986725,142.0,141.88,1.9485]
[1740824431542,5.78986725,141.99,141.88,1.9485]
[1740824431744,0.04887837,141.95,141.93,0.0447344]
[1740824432947,0.04887837,141.95,141.89,11.66]
[1740824433151,39.32748236,141.99,141.89,11.66]
[1740824433350,214.0150642,141.94,141.91,6.3433]
[1740824433551,214.0150642,141.94,141.89,11.64]
[1740824433741,214.0150642,141.94,141.89,15.16]
[1740824433940,214.0150642,141.94,141.89,11.64]
[1740824434155,214.0150642,141.94,141.91,6.3435]
[1740824434448,0.04442307,141.93,141.9,0.04545865]
[1740824434954,39.37190543,141.93,141.85,50.63803081]
[1740824435252,39.37190543,141.93,141.87,6.3452]
[1740824435456,39.37190543,141.93,141.85,50.63803081]
[1740824435842,39.32748236,141.92,141.85,50.63803081]
[1740824436354,0.04731804,141.9,141.86,225.46]
[1740824436737,0.04731804,141.9,141.63,1747.38]
[1740824436946,11.72,141.89,141.82,6.3474]
[1740824437142,11.72,141.89,141.77,225.46]
[1740824437343,0.05300277,141.87,141.84,0.04736273]
[1740824437945,0.05300277,141.87,141.84,3.56736273]
[1740824438252,116.23031938,141.91,141.84,3.56736273]
[1740824438453,116.23031938,141.91,141.86,6.346]
[1740824438654,39.32748236,141.88,141.82,11.72]
[1740824439352,0.04816232,141.86,141.85,6.3465]
[1740824439551,39.32748236,141.88,141.84,0.05384116]
[1740824439937,39.32748236,141.88,141.85,6.3461]
[1740824440138,124.2593787,141.9,141.84,0.05384116]
[1740824440545,124.2593787,141.9,141.77,158.72233025]
[1740824441453,6.3448,141.89,141.81,6.348]
[1740824441854,0.04986145,141.85,141.82,0.05401069]
[1740824444158,0.04986145,141.85,141.82,1.93531069]
[1740824445358,6.39636145,141.85,141.82,0.05401069]
[1740824447745,78.58759634,141.9,141.82,3.57401069]
[1740824447948,78.58759634,141.9,141.82,0.05401069]
[1740824448955,0.05371502,141.87,141.82,0.05401069]
[1740824450354,6.3468,141.85,141.82,0.05401069]
[1740824451460,6.3471,141.84,141.82,0.05401069]
[1740824451963,11.75371502,141.87,141.82,0.05401069]
[1740824452559,5.75506347,141.86,141.82,0.05401069]
[1740824452962,5.75506347,141.85,141.82,0.05401069]
[1740824453459,5.75506347,141.85,141.79,225.6]
[1740824453763,5.75506347,141.86,141.79,225.6]
[1740824454155,6.3487,141.8,141.79,225.6]
[1740824454356,11.68,141.81,141.74,274.82280756]
[1740824454560,5.75506347,141.8,141.74,274.82280756]
[1740824454761,5.75506347,141.8,141.76,0.04660682]
[1740824454762,0.05402919,141.79,141.76,0.04660682]
[1740824455457,5.75506347,141.78,141.76,0.04660682]
[1740824455768,0.05402919,141.79,141.76,0.04660682]
[1740824456167,6.3468,141.85,141.76,0.04660682]
[1740824456362,11.7,141.86,141.76,0.04660682]
[1740824456567,11.7,141.86,141.75,11.7]
[1740824457064,6.3468,141.85,141.78,6.3495]
[1740824457261,1.8761,141.88,141.75,11.7]
[1740824457459,0.04728545,141.83,141.8,0.05054154]
[1740824458365,0.04728545,141.83,141.8,6.39894154]
[1740824459368,0.04728545,141.83,141.8,0.05054154]
[1740824461067,3.8948,141.89,141.8,0.05054154]
[1740824461068,6.3448,141.89,141.84,6.3465]
[1740824461374,90.26759634,141.9,141.81,227.5056]
[1740824461564,78.58759634,141.9,141.82,1.9616]
[1740824461763,6.3448,141.89,141.82,1.9616]
[1740824462159,6.3448,141.89,141.85,6.3461]
[1740824462372,0.05071353,141.87,141.85,6.3461]
[1740824462563,0.05071353,141.87,141.84,0.04493473]
[1740824462864,0.05071353,141.87,141.84,6.39173473]
[1740824463371,0.05071353,141.87,141.85,6.3461]
[1740824463678,0.05071353,141.87,141.84,0.04493473]
[1740824464261,6.346,141.86,141.84,0.04493473]
[1740824464465,0.05071353,141.87,141.84,0.04493473]
[1740824466364,0.05071353,141.87,141.86,6.346]
[1740824471076,174.68758184,141.94,141.88,6.3447]
[1740824471376,174.68758184,141.94,141.85,11.62]
[1740824471569,174.68758184,141.94,141.85,13.4584]
[1740824471772,174.68758184,141.94,141.85,205.4584]
[1740824472172,0.05199477,141.91,141.88,0.04638778]
[1740824472362,0.05199477,141.91,141.9,6.3442]
[1740824472872,0.05199477,141.91,141.88,6.39148778]
[1740824473073,0.05199477,141.91,141.88,0.04638778]
[1740824473875,0.05199477,141.91,141.88,6.39118778]
[1740824474880,0.05199477,141.91,141.88,0.04638778]
[1740824475381,6.3443,141.9,141.88,0.04638778]
[1740824477278,6.39599477,141.91,141.88,0.04638778]
[1740824477984,0.05199477,141.91,141.88,0.04638778]
[1740824479982,0.05199477,141.91,141.9,6.3442]
[1740824483382,0.05199477,141.91,141.89,225.56]
[1740824484487,6.39589477,141.91,141.89,225.56]
[1740824484883,6.39589477,141.91,141.89,222.5629]
[1740824489989,6.3442,141.9,141.89,222.5629]
[1740824490994,6.3447,141.89,141.88,0.04638778]
[1740824491591,6.3459,141.87,141.85,225.56]
[1740824491891,3.7722,141.9,141.85,225.56]
[1740824492287,6.346,141.86,141.85,225.56]
[1740824494200,0.04806986,141.87,141.84,0.05292303]
[1740824494392,0.04806986,141.87,141.78,225.58]
[1740824494595,15.1922,141.9,141.78,225.58]
[1740824494990,6.3486,141.81,141.78,225.58]
[1740824495491,6.40180251,141.81,141.78,225.62480375]
[1740824495787,0.05320251,141.81,141.78,225.62480375]
[1740824496391,6.40150251,141.81,141.78,225.62480375]
[1740824496995,0.05320251,141.81,141.78,225.62480375]
[1740824498286,6.3488,141.8,141.78,225.62480375]
[1740824498886,0.05320251,141.81,141.78,225.62480375]
[1740824499195,6.3491,141.79,141.78,225.62480375]
[1740824501397,0.05320251,141.81,141.78,225.62480375]
[1740824502490,0.05320251,141.81,141.8,6.3487]
[1740824504394,0.05320251,141.81,141.79,6.349]
[1740824504597,0.05320251,141.81,141.78,225.62480375]
[1740824505099,0.05320251,141.81,141.79,6.3491]
[1740824505307,0.05320251,141.81,141.78,225.62480375]
[1740824506097,0.05320251,141.81,141.79,6.3491]
[1740824507001,0.05320251,141.81,141.8,6.3487]
[1740824508004,0.05320251,141.81,141.78,225.62480375]
[1740824508301,0.05320251,141.81,141.79,6.349]
[1740824509991,0.05320251,141.81,141.78,225.62480375]
[1740824510192,0.05320251,141.81,141.78,231.97410375]
[1740824511203,0.05320251,141.81,141.79,6.3489]
[1740824511403,0.05320251,141.81,141.78,225.62480375]
[1740824511901,0.05320251,141.81,141.8,6.3487]
[1740824514103,0.05320251,141.81,141.78,0.04480375]
[1740824514399,6.3491,141.79,141.78,0.04480375]
[1740824515795,6.3489,141.8,141.78,0.04480375]
[1740824515995,0.05320251,141.81,141.78,0.04480375]
[1740824517108,6.40170251,141.81,141.78,0.04480375]
[1740824517603,0.05320251,141.81,141.78,0.04480375]
[1740824518312,6.3487,141.8,141.78,0.04480375]
[1740824520311,0.05320251,141.81,141.78,0.04480375]
[1740824520607,6.3491,141.79,141.78,0.04480375]
[1740824526914,6.3506,141.76,141.74,246.0]
[1740824528006,6.39655279,141.76,141.74,246.05093701]
[1740824529110,0.04595279,141.76,141.74,246.05093701]
[1740824529312,6.3509,141.75,141.74,230.31943803]
[1740824529513,6.3509,141.75,141.74,214.31943803]
[1740824530515,6.3509,141.75,141.74,211.32063803]
[1740824530817,9.8709,141.75,141.74,139.21473803]
[1740824531017,9.8709,141.75,141.74,109.48923803]
[1740824531318,9.8709,141.75,141.74,51.60833803]
[1740824531918,6.3509,141.75,141.74,51.60833803]
[1740824532316,9.8709,141.75,141.74,51.60833803]
[1740824532510,9.8709,141.75,141.74,41.44873803]
[1740824532915,6.3509,141.75,141.74,41.44873803]
[1740824533723,11.18595279,141.76,141.74,41.44873803]
[1740824534021,17.53655279,141.76,141.74,41.44873803]
[1740824534220,11.18595279,141.76,141.74,107.44873803]
[1740824534419,6.3509,141.75,141.74,107.44873803]
[1740824537313,9.8709,141.75,141.74,107.44873803]
[1740824537519,9.8709,141.75,141.74,97.58333803]
[1740824537817,9.8709,141.75,141.74,87.58333803]
[1740824539025,9.8709,141.75,141.74,77.46333803]
[1740824539228,6.3509,141.75,141.74,47.27903803]
[1740824539517,9.8709,141.75,141.74,47.27903803]
[1740824540215,9.8709,141.75,141.74,37.33333803]
[1740824540523,6.3514,141.74,141.73,0.05231551]
[1740824540909,9.8714,141.74,141.73,0.05231551]
[1740824542521,9.8714,141.74,141.73,1.551e-05]
[1740824544124,6.3545,141.68,141.65,0.80751381]
[1740824544427,11.1,141.67,141.65,0.80751381]
[1740824544723,17.4548,141.67,141.65,0.80751381]
[1740824545024,11.1,141.67,141.65,0.80751381]
[1740824545220,11.14687748,141.67,141.65,0.85705509]
[1740824545427,6.355,141.66,141.65,0.85705509]
[1740824546631,11.14687748,141.67,141.65,0.85705509]
[1740824546632,17.50157748,141.67,141.65,0.85705509]
[1740824546831,11.14687748,141.67,141.65,0.85705509]
[1740824547516,17.50157748,141.67,141.65,0.85705509]
[1740824548527,6.355,141.66,141.65,0.85705509]
[1740824549420,6.355,141.66,141.65,5.509e-05]
[1740824549626,6.3574,141.61,141.58,3.8242]
[1740824550124,11.12,141.62,141.55,1.8826]
[1740824550325,11.12,141.61,141.53,1.9325]
[1740824550730,6.41019427,141.58,141.56,0.04976865]
[1740824550928,0.05139427,141.58,141.56,0.04976865]
[1740824551125,0.05139427,141.58,141.43,416.30992365]
[1740824551331,0.05139427,141.58,141.45,54.53330032]
[1740824551535,2.9694,141.6,141.45,59.34430032]
[1740824551831,11.3,141.59,141.45,4.811]
[1740824552432,0.04812313,141.53,141.51,0.05261063]
[1740824552637,11.3,141.59,141.52,6.3613]
[1740824552933,11.3,141.59,141.53,5.6951]
[1740824553325,11.3,141.59,141.48,192.0]
[1740824553530,11.3,141.59,141.49,5.6951]
[1740824553737,11.3,141.59,141.49,12.0574]
[1740824553931,0.0463061,141.55,141.53,0.05130372]
[1740824554242,11.34,141.54,141.44,9.74591749]
[1740824554428,14.3744,141.54,141.44,9.74591749]
[1740824554632,6.3617,141.51,141.44,9.74591749]
[1740824555335,0.04961695,141.49,141.46,0.0515912]
[1740824563940,0.04961695,141.49,141.4,0.27929]
[1740824563941,237.62,141.48,141.23,76.14796946]
[1740824564128,247.35,141.48,141.25,8.5422]
[1740824564333,13.21995011,141.47,141.25,8.5422]
[1740824564533,1.23995011,141.46,141.25,5.7048]
[1740824564734,1.23995011,141.46,141.25,2.8252]
[1740824565040,6.3702,141.33,141.25,2.8252]
[1740824565247,12.26,141.32,141.23,76.14796946]
[1740824565435,12.26,141.31,141.23,76.14796946]
[1740824565743,0.05286151,141.29,141.27,0.04721791]
[1740824565941,0.05286151,141.29,141.23,76.14796946]
[1740824566239,6.373,141.26,141.23,76.14796946]
[1740824566446,12.36,141.25,141.23,76.14796946]
[1740824566939,22.2734,141.25,141.24,19.84962505]
[1740824567145,15.9,141.25,141.23,5.538e-05]
[1740824567540,6.3739,141.24,141.23,5.538e-05]
[1740824567941,0.05349338,141.26,141.23,5.538e-05]
[1740824568148,12.44,141.39,141.23,5.538e-05]
[1740824568337,226.32,141.5,141.23,5.538e-05]
[1740824568537,226.32,141.5,141.27,6.3724]
[1740824568745,12.46,141.44,141.28,12.46]
[1740824569041,12.46,141.44,141.29,3.0617]
[1740824569431,0.05280247,141.38,141.35,0.05163009]
[1740824569633,12.46,141.44,141.35,0.05163009]
[1740824569940,18.8249,141.44,141.3,226.34]
[1740824570135,226.34,141.57,141.31,2.8248]
[1740824570339,13.86041164,141.56,141.31,2.8248]
[1740824570639,12.62,141.56,141.31,2.8248]
[1740824570840,1.24034421,141.55,141.31,2.8248]
[1740824571036,0.04554693,141.45,141.42,0.04492284]
[1740824571236,18.9849,141.44,141.42,0.04492284]
[1740824571438,12.62,141.44,141.31,9.1951]
[1740824571746,226.34,141.57,141.31,2.8248]
[1740824571933,0.05201059,141.39,141.36,0.05108548]
[1740824572132,12.62,141.49,141.35,12.62]
[1740824572446,12.62,141.52,141.36,6.3683]
[1740824572648,12.62,141.52,141.35,12.62]
[1740824573136,12.62,141.54,141.35,12.62]
[1740824573338,0.04532654,141.45,141.42,0.05393041]
[1740824573643,190.0,141.68,141.41,238.98]
[1740824573840,13.86121358,141.67,141.42,2.7795]
[1740824574042,1.24121358,141.66,141.42,2.7795]
[1740824574344,6.3589,141.58,141.45,6.3642]
[1740824574545,12.7,141.57,141.45,6.3642]
[1740824574742,0.05111961,141.53,141.5,0.05034471]
[1740824575543,12.7,141.57,141.5,0.05034471]
[1740824576443,19.0181,141.59,141.5,0.05034471]
[1740824576942,0.05443291,141.55,141.53,0.04736835]
[1740824579847,6.3577,141.6,141.53,0.04736835]
[1740824580049,12.6,141.61,141.53,0.04736835]
[1740824580935,0.0511217,141.58,141.53,0.04736835]
[1740824581139,0.0511217,141.58,141.53,6.40806835]
[1740824581647,0.0511217,141.58,141.53,0.04736835]
[1740824582739,6.3604,141.54,141.53,0.04736835]
[1740824582935,18.9204,141.54,141.53,0.04736835]
[1740824584152,12.56,141.54,141.53,0.04736835]
[1740824585151,18.9204,141.54,141.53,0.04736835]
[1740824586454,12.56,141.54,141.53,0.04736835]
[1740824587249,18.9204,141.54,141.53,0.04736835]
[1740824587455,16.1,141.54,141.47,3.1191]
[1740824587651,12.56,141.54,141.46,2.8284]
[1740824588653,0.04674406,141.51,141.49,0.04904645]
[1740824589046,3.58674406,141.51,141.29,76.57367514]
[1740824589242,12.56,141.54,141.32,226.2]
[1740824589449,1.24132521,141.53,141.32,226.2]
[1740824589648,12.56,141.54,141.34,6.3692]
[1740824590050,1.24100903,141.53,141.34,6.3692]
[1740824590254,6.3657,141.43,141.32,238.78]
[1740824590455,12.58,141.45,141.41,0.04845779]
[1740824590958,6.3658,141.42,141.35,6.3686]
[1740824591458,0.04519139,141.4,141.37,0.04939262]
[1740824592849,6.3676,141.38,141.37,0.04939262]
[1740824593045,12.52,141.39,141.3,9.9948]
[1740824593759,12.52,141.39,141.25,226.26]
[1740824593960,6.3714,141.3,141.25,226.26]
[1740824594161,12.54,141.33,141.25,226.26]
[1740824594358,0.05207952,141.29,141.26,0.05240024]
[1740824595960,6.3725,141.27,141.26,0.05240024]
[1740824596158,12.7,141.28,141.2,76.57367514]
[1740824596557,6.3742,141.24,141.2,76.57367514]
[1740824596764,12.7,141.28,141.2,76.57367514]
[1740824597062,12.7,141.27,141.2,76.57367514]
[1740824597366,12.7,141.27,141.22,0.04907088]
[1740824597367,0.05002675,141.25,141.22,0.04907088]
[1740824598053,12.76,141.34,141.22,0.04907088]
[1740824598357,19.1297,141.34,141.24,6.3735]
[1740824598562,19.1297,141.34,141.22,3.2578]
[1740824599453,0.04855046,141.29,141.27,0.05104257]
[1740824599662,19.1297,141.34,141.27,0.05104257]
[1740824600161,6.3703,141.32,141.27,0.05104257]
[1740824600464,12.76,141.34,141.27,0.05104257]
[1740824600674,6.3711,141.31,141.27,0.05104257]
[1740824600865,0.0506055,141.32,141.27,0.05104257]
[1740824602262,13.04,141.31,141.27,0.05104257]
[1740824602662,19.4107,141.31,141.27,0.05104257]
[1740824603061,13.04,141.31,141.27,0.05104257]
[1740824603268,6.3712,141.3,141.27,0.05104257]
[1740824603567,13.04,141.31,141.27,0.05104257]
[1740824604463,6.3713,141.3,141.27,0.05104257]
[1740824604969,19.4908,141.31,141.27,0.05104257]
[1740824605367,13.12,141.31,141.27,0.05104257]
[1740824605562,6.3713,141.3,141.27,0.05104257]
[1740824608056,19.4908,141.31,141.27,0.05104257]
[1740824613270,19.4908,141.31,141.27,3.25874257]
[1740824613776,19.4908,141.31,141.27,9.63124257]
[1740824615772,6.3721,141.28,141.27,0.05104257]
[1740824616270,6.3721,141.28,141.21,226.4]
[1740824616271,6.3743,141.23,141.21,226.4]
[1740824616466,0.05125578,141.29,141.19,3.1647]
[1740824616467,13.04,141.26,141.19,3.1647]
[1740824617478,0.05228496,141.24,141.21,0.04983466]
[1740824618176,6.3748,141.22,141.21,0.04983466]
[1740824618577,0.05228496,141.24,141.21,0.04983466]
[1740824619778,13.04,141.26,141.21,0.04983466]
[1740824620571,12.7347,141.39,141.21,0.04983466]
[1740824620572,13.04,141.3,141.21,0.04983466]
[1740824620777,13.04,141.3,141.19,3.1647]
[1740824620978,0.04532467,141.27,141.24,0.04897137]
[1740824621773,0.04532467,141.27,141.24,6.42267137]
[1740824621980,0.04532467,141.27,141.24,0.04897137]
[1740824623480,0.04532467,141.27,141.24,6.42257137]
[1740824623681,0.04532467,141.27,141.24,0.04897137]
[1740824623983,0.04532467,141.27,141.25,6.3731]
[1740824625084,0.04532467,141.27,141.24,6.42267137]
[1740824625281,13.02,141.31,141.24,0.04897137]
[1740824625887,6.3713,141.3,141.26,6.3729]
[1740824626076,13.02,141.31,141.23,3.386]
[1740824626479,0.04739331,141.28,141.26,0.05436082]
[1740824627974,6.3709,141.31,141.26,0.05436082]
[1740824628580,6.3707,141.31,141.28,6.3719]
[1740824629084,12.92,141.34,141.28,6.3719]
[1740824629275,0.05321548,141.31,141.28,6.3719]
[1740824629473,0.05321548,141.31,141.3,0.04612123]
[1740824629888,0.05321548,141.31,141.3,6.41732123]
[1740824630776,6.3693,141.35,141.31,6.3704]
[1740824631579,6.3693,141.35,141.3,0.04612123]
[1740824631580,15.4563,141.44,141.3,0.04612123]
[1740824631776,0.04639362,141.34,141.27,208.0529]
[1740824632070,6.3683,141.37,141.36,0.04780732]
[1740824632275,6.3683,141.37,141.27,208.0529]
[1740824632474,6.3683,141.37,141.27,16.0529]
[1740824632679,0.05074432,141.33,141.31,0.04926823]
[1740824633081,0.05074432,141.33,141.32,6.37]
[1740824633677,16.0181,141.43,141.33,6.3695]